[Event "Late-Titled-Tuesday-Blitz-June-18-2024"]
[Site "Chess.com"]
[Date "2024.06.18"]
[Round "8"]
[White "AlphaPerseii"]
[Black "carloseduar100"]
[Result "1/2-1/2"]
[WhiteElo "2402"]
[BlackElo "2251"]
[TimeControl "180+1"]
[EndTime "15:29:48 PDT"]
[Termination "Game drawn by repetition"]

1. c4 {[%clk 0:03:00.9]} 1... e6 {[%clk 0:02:54]} 2. d4 {[%clk 0:02:58.1]} 2...
d5 {[%clk 0:02:53.2]} 3. Nc3 {[%clk 0:02:58.7]} 3... a6 {[%clk 0:02:52.9]} 4.
cxd5 {[%clk 0:02:58.3]} 4... exd5 {[%clk 0:02:52.9]} 5. Nf3 {[%clk 0:02:58.9]}
5... c6 {[%clk 0:02:50.1]} 6. Bf4 {[%clk 0:02:58.5]} 6... Bd6 {[%clk 0:02:49.8]}
7. Bg3 {[%clk 0:02:51.9]} 7... Ne7 {[%clk 0:02:49.3]} 8. e3 {[%clk 0:02:50.2]}
8... Bf5 {[%clk 0:02:46.7]} 9. Bd3 {[%clk 0:02:44.3]} 9... Qc7 {[%clk
0:02:44.8]} 10. Rc1 {[%clk 0:02:40.7]} 10... Bxd3 {[%clk 0:02:32.4]} 11. Qxd3
{[%clk 0:02:41.6]} 11... Bxg3 {[%clk 0:02:32.3]} 12. hxg3 {[%clk 0:02:40.8]}
12... Nd7 {[%clk 0:02:32.5]} 13. Rxh7 {[%clk 0:02:36.5]} 13... O-O-O {[%clk
0:02:25.4]} 14. Kd2 {[%clk 0:02:30.7]} 14... Rdg8 {[%clk 0:01:51.5]} 15. Rch1
{[%clk 0:02:27.9]} 15... Rxh7 {[%clk 0:01:51.8]} 16. Rxh7 {[%clk 0:02:25.6]}
16... Nf6 {[%clk 0:01:52.2]} 17. Rh1 {[%clk 0:02:24.6]} 17... g6 {[%clk
0:01:47.9]} 18. Ne5 {[%clk 0:02:23.6]} 18... Nf5 {[%clk 0:01:47.4]} 19. g4
{[%clk 0:02:16.9]} 19... Nd6 {[%clk 0:01:46.2]} 20. f3 {[%clk 0:02:12.2]} 20...
Kd8 {[%clk 0:01:28.2]} 21. Kc1 {[%clk 0:01:57]} 21... Ke7 {[%clk 0:01:26.9]} 22.
b3 {[%clk 0:01:44.8]} 22... Qa5 {[%clk 0:01:25.6]} 23. Kb2 {[%clk 0:01:42.5]}
23... Nd7 {[%clk 0:01:19.8]} 24. Nxd7 {[%clk 0:01:33.5]} 24... Kxd7 {[%clk
0:01:20.7]} 25. Na4 {[%clk 0:01:32.8]} 25... Re8 {[%clk 0:01:09.7]} 26. Nc5+
{[%clk 0:01:29.2]} 26... Kc7 {[%clk 0:01:10.4]} 27. Rc1 {[%clk 0:01:21.3]} 27...
f5 {[%clk 0:01:03.9]} 28. gxf5 {[%clk 0:01:18.4]} 28... gxf5 {[%clk 0:01:04.8]}
29. Rc2 {[%clk 0:01:13.2]} 29... Qe1 {[%clk 0:01:03.5]} 30. Nxa6+ {[%clk
0:01:03.3]} 30... bxa6 {[%clk 0:00:50.1]} 31. Qxa6 {[%clk 0:01:04.2]} 31... Kd7
{[%clk 0:00:50.4]} 32. Qxc6+ {[%clk 0:00:59.4]} 32... Ke6 {[%clk 0:00:50.6]} 33.
Qc3 {[%clk 0:00:46.5]} 33... Qf1 {[%clk 0:00:25.8]} 34. Qb4 {[%clk 0:00:38.2]}
34... Rc8 {[%clk 0:00:21.8]} 35. Qd2 {[%clk 0:00:30.3]} 35... Rg8 {[%clk
0:00:18]} 36. a4 {[%clk 0:00:29.4]} 36... Rb8 {[%clk 0:00:15.6]} 37. Rc6 {[%clk
0:00:22.8]} 37... Kd7 {[%clk 0:00:13.2]} 38. Qc2 {[%clk 0:00:20.6]} 38... Nc4+
{[%clk 0:00:11.7]} 39. Rxc4 {[%clk 0:00:15.4]} 39... dxc4 {[%clk 0:00:11.5]} 40.
Qxf5+ {[%clk 0:00:14.4]} 40... Kd8 {[%clk 0:00:09]} 41. Qf8+ {[%clk 0:00:13]}
41... Kc7 {[%clk 0:00:09.2]} 42. Qc5+ {[%clk 0:00:13.2]} 42... Kd7 {[%clk
0:00:08.4]} 43. Qd5+ {[%clk 0:00:11.1]} 43... Kc7 {[%clk 0:00:08.7]} 44. Qe5+
{[%clk 0:00:11]} 44... Kc8 {[%clk 0:00:07.9]} 45. Qe6+ {[%clk 0:00:09.3]} 45...
Kb7 {[%clk 0:00:07.9]} 46. Qxc4 {[%clk 0:00:07]} 46... Qxg2+ {[%clk 0:00:08.3]}
47. Ka3 {[%clk 0:00:06.6]} 47... Qxf3 {[%clk 0:00:08.9]} 48. d5 {[%clk
0:00:06.1]} 48... Ka7 {[%clk 0:00:07.4]} 49. Qc5+ {[%clk 0:00:05.9]} 49... Ka8
{[%clk 0:00:07.7]} 50. Qc6+ {[%clk 0:00:04.7]} 50... Ka7 {[%clk 0:00:08]} 51.
Qc5+ {[%clk 0:00:04.7]} 51... Ka8 {[%clk 0:00:08.3]} 52. Qa5+ {[%clk 0:00:05.1]}
52... Kb7 {[%clk 0:00:08.5]} 53. Qb5+ {[%clk 0:00:05.6]} 53... Ka7 {[%clk
0:00:08.9]} 54. Qc5+ {[%clk 0:00:03.5]} 1/2-1/2

[Event "Late-Titled-Tuesday-Blitz-June-18-2024"]
[Site "Chess.com"]
[Date "2024.06.18"]
[Round "8"]
[White "DeTimmerman"]
[Black "King_Deded4d5"]
[Result "1-0"]
[WhiteElo "2757"]
[BlackElo "2513"]
[TimeControl "180+1"]
[EndTime "15:29:53 PDT"]
[Termination "DeTimmerman won on time"]

1. Nf3 {[%clk 0:02:59.7]} 1... d5 {[%clk 0:02:59.9]} 2. e3 {[%clk 0:02:51.3]}
2... Nf6 {[%clk 0:02:59.7]} 3. c4 {[%clk 0:02:51.4]} 3... e6 {[%clk 0:02:57.4]}
4. Be2 {[%clk 0:02:50.5]} 4... Bd6 {[%clk 0:02:55.3]} 5. O-O {[%clk 0:02:49.5]}
5... O-O {[%clk 0:02:54.5]} 6. d4 {[%clk 0:02:49.3]} 6... c6 {[%clk 0:02:50.5]}
7. Nc3 {[%clk 0:02:49]} 7... Nbd7 {[%clk 0:02:47.9]} 8. Qc2 {[%clk 0:02:48.4]}
8... e5 {[%clk 0:02:39.6]} 9. cxd5 {[%clk 0:02:44.7]} 9... cxd5 {[%clk
0:02:37.1]} 10. dxe5 {[%clk 0:02:43.3]} 10... Nxe5 {[%clk 0:02:36.9]} 11. Rd1
{[%clk 0:02:37.8]} 11... Bg4 {[%clk 0:02:32.7]} 12. Nxe5 {[%clk 0:02:22.5]}
12... Bxe5 {[%clk 0:02:31.3]} 13. Nxd5 {[%clk 0:02:07.5]} 13... Rc8 {[%clk
0:02:15]} 14. Nc3 {[%clk 0:01:24.5]} 14... Qc7 {[%clk 0:02:03.3]} 15. h3 {[%clk
0:01:18.8]} 15... Bxe2 {[%clk 0:01:42.7]} 16. Qxe2 {[%clk 0:01:19.7]} 16... Bxc3
{[%clk 0:01:43.1]} 17. bxc3 {[%clk 0:01:19.8]} 17... Ne4 {[%clk 0:01:35.3]} 18.
Rd4 {[%clk 0:00:51.5]} 18... Qxc3 {[%clk 0:01:00.2]} 19. Bb2 {[%clk 0:00:50.6]}
19... Qc2 {[%clk 0:01:00.1]} 20. Re1 {[%clk 0:00:31]} 20... f5 {[%clk 0:00:45]}
21. Rd7 {[%clk 0:00:25.8]} 21... Rf7 {[%clk 0:00:36.6]} 22. Rd8+ {[%clk
0:00:25.5]} 22... Rf8 {[%clk 0:00:35.5]} 23. Rd7 {[%clk 0:00:21.4]} 23... Rf7
{[%clk 0:00:35.7]} 24. Rxf7 {[%clk 0:00:16.7]} 24... Kxf7 {[%clk 0:00:36.6]} 25.
Qh5+ {[%clk 0:00:16.7]} 25... Ke6 {[%clk 0:00:36.7]} 26. Re2 {[%clk 0:00:15.1]}
26... Qd1+ {[%clk 0:00:29.5]} 27. Kh2 {[%clk 0:00:15.7]} 27... g6 {[%clk
0:00:29.9]} 28. Qf3 {[%clk 0:00:15.3]} 28... Rc2 {[%clk 0:00:19.9]} 29. Rxc2
{[%clk 0:00:15.4]} 29... Qxc2 {[%clk 0:00:20.8]} 30. Bd4 {[%clk 0:00:15.9]}
30... Qxf2 {[%clk 0:00:16.5]} 31. Qd1 {[%clk 0:00:16.6]} 31... Qg3+ {[%clk
0:00:14.6]} 32. Kg1 {[%clk 0:00:17.2]} 32... Qf2+ {[%clk 0:00:15.3]} 33. Kh2
{[%clk 0:00:17.6]} 33... Qxa2 {[%clk 0:00:09.3]} 34. Qc1 {[%clk 0:00:17.3]}
34... Qd5 {[%clk 0:00:06.1]} 35. Qc8+ {[%clk 0:00:17.3]} 35... Qd7 {[%clk
0:00:06.7]} 36. Qh8 {[%clk 0:00:17.7]} 36... a6 {[%clk 0:00:05.3]} 37. Qe5+
{[%clk 0:00:17.3]} 37... Kf7 {[%clk 0:00:05.4]} 38. Qg7+ {[%clk 0:00:18.2]}
38... Ke8 {[%clk 0:00:03.9]} 39. Qh8+ {[%clk 0:00:16.6]} 39... Ke7 {[%clk
0:00:04.6]} 40. Qxh7+ {[%clk 0:00:17.5]} 40... Kd8 {[%clk 0:00:03.9]} 41. Qg8+
{[%clk 0:00:16.6]} 41... Kc7 {[%clk 0:00:04]} 42. Be5+ {[%clk 0:00:16.6]} 42...
Kc6 {[%clk 0:00:04]} 43. Qxg6+ {[%clk 0:00:16.9]} 43... Kd5 {[%clk 0:00:03.5]}
44. Bf4 {[%clk 0:00:16.8]} 44... a5 {[%clk 0:00:03.4]} 45. h4 {[%clk 0:00:16.8]}
45... a4 {[%clk 0:00:03.7]} 46. h5 {[%clk 0:00:17.5]} 46... a3 {[%clk 0:00:04]}
47. h6 {[%clk 0:00:17.7]} 47... a2 {[%clk 0:00:04.4]} 48. Qg8+ {[%clk
0:00:16.5]} 48... Qe6 {[%clk 0:00:04.3]} 49. Qd8+ {[%clk 0:00:16.6]} 49... Kc4
{[%clk 0:00:04.2]} 50. Qd4+ {[%clk 0:00:17.1]} 50... Kb3 {[%clk 0:00:04.4]} 51.
h7 {[%clk 0:00:18]} 1-0

[Event "Late-Titled-Tuesday-Blitz-June-18-2024"]
[Site "Chess.com"]
[Date "2024.06.18"]
[Round "8"]
[White "Sondremelaa"]
[Black "Tolya2"]
[Result "1-0"]
[WhiteElo "2622"]
[BlackElo "2470"]
[TimeControl "180+1"]
[EndTime "15:29:55 PDT"]
[Termination "Sondremelaa won on time"]

1. e4 {[%clk 0:02:59.1]} 1... c5 {[%clk 0:02:58.4]} 2. Nf3 {[%clk 0:02:59.6]}
2... d6 {[%clk 0:02:58.3]} 3. d4 {[%clk 0:03:00.1]} 3... cxd4 {[%clk 0:02:58.4]}
4. Nxd4 {[%clk 0:03:01]} 4... Nf6 {[%clk 0:02:57.9]} 5. Nc3 {[%clk 0:03:01.6]}
5... a6 {[%clk 0:02:58.2]} 6. h3 {[%clk 0:03:01.7]} 6... h5 {[%clk 0:02:53.7]}
7. Bc4 {[%clk 0:02:57.5]} 7... e6 {[%clk 0:02:53]} 8. Bg5 {[%clk 0:02:53.9]}
8... Be7 {[%clk 0:02:51]} 9. Qd2 {[%clk 0:02:53.9]} 9... Nc6 {[%clk 0:02:49.8]}
10. O-O-O {[%clk 0:02:44.5]} 10... Qc7 {[%clk 0:02:40.6]} 11. Bb3 {[%clk
0:02:27.3]} 11... Na5 {[%clk 0:02:39.8]} 12. g4 {[%clk 0:02:22.5]} 12... b5
{[%clk 0:02:34.8]} 13. f3 {[%clk 0:02:11.3]} 13... Nc4 {[%clk 0:02:29.1]} 14.
Bxc4 {[%clk 0:02:09.8]} 14... Qxc4 {[%clk 0:02:28.3]} 15. gxh5 {[%clk
0:02:06.9]} 15... Bb7 {[%clk 0:02:21.4]} 16. Kb1 {[%clk 0:02:05.2]} 16... Rxh5
{[%clk 0:02:19.3]} 17. h4 {[%clk 0:02:05.5]} 17... O-O-O {[%clk 0:02:16.1]} 18.
Nb3 {[%clk 0:02:05.7]} 18... Qc7 {[%clk 0:02:14.4]} 19. Qe3 {[%clk 0:01:58.2]}
19... Kb8 {[%clk 0:02:10.4]} 20. Rd3 {[%clk 0:01:54.8]} 20... Rhh8 {[%clk
0:02:08]} 21. Rhd1 {[%clk 0:01:54]} 21... d5 {[%clk 0:01:54.2]} 22. exd5 {[%clk
0:01:43.5]} 22... b4 {[%clk 0:01:52.4]} 23. d6 {[%clk 0:01:27.7]} 23... Bxd6
{[%clk 0:01:48]} 24. Rxd6 {[%clk 0:01:27.7]} 24... Rxd6 {[%clk 0:01:46.8]} 25.
Rxd6 {[%clk 0:01:27.1]} 25... bxc3 {[%clk 0:01:41.5]} 26. Bf4 {[%clk 0:01:26.3]}
26... Kc8 {[%clk 0:01:29.3]} 27. bxc3 {[%clk 0:00:42.1]} 27... Rxh4 {[%clk
0:01:13.1]} 28. Be5 {[%clk 0:00:38.2]} 28... Nd7 {[%clk 0:01:10.7]} 29. Rxe6
{[%clk 0:00:18.7]} 29... Nxe5 {[%clk 0:01:07.5]} 30. Re8+ {[%clk 0:00:18.1]}
30... Kd7 {[%clk 0:01:04.1]} 31. Rxe5 {[%clk 0:00:17.6]} 31... Qd6 {[%clk
0:00:55.6]} 32. Nc5+ {[%clk 0:00:15.5]} 32... Kc6 {[%clk 0:00:47.6]} 33. Nd3
{[%clk 0:00:11]} 33... Bc8 {[%clk 0:00:27.6]} 34. Rc5+ {[%clk 0:00:08.3]} 34...
Kb7 {[%clk 0:00:26.4]} 35. Nb4 {[%clk 0:00:05.4]} 35... Be6 {[%clk 0:00:20.9]}
36. Kb2 {[%clk 0:00:04.7]} 36... Qb6 {[%clk 0:00:18.1]} 37. Qf2 {[%clk
0:00:01.8]} 37... Rxb4+ {[%clk 0:00:14.5]} 38. cxb4 {[%clk 0:00:01.9]} 38...
Qxb4+ {[%clk 0:00:14.6]} 39. Kc1 {[%clk 0:00:02.8]} 39... a5 {[%clk 0:00:09.2]}
40. Qe3 {[%clk 0:00:02.7]} 40... Qb6 {[%clk 0:00:08.4]} 41. a3 {[%clk
0:00:02.3]} 41... a4 {[%clk 0:00:07.6]} 42. Qc3 {[%clk 0:00:02.1]} 42... Bd5
{[%clk 0:00:04.7]} 43. Qb4 {[%clk 0:00:01.6]} 43... Qxb4 {[%clk 0:00:04.6]} 44.
axb4 {[%clk 0:00:02.2]} 44... Bc6 {[%clk 0:00:04.3]} 45. f4 {[%clk 0:00:01.4]}
45... Bd7 {[%clk 0:00:04.2]} 46. Kb2 {[%clk 0:00:02.3]} 46... f6 {[%clk
0:00:03.7]} 47. Ka3 {[%clk 0:00:02.8]} 47... Kb6 {[%clk 0:00:03.5]} 48. c4
{[%clk 0:00:03.3]} 48... Be8 {[%clk 0:00:02.7]} 49. Rd5 {[%clk 0:00:03.8]} 49...
Bc6 {[%clk 0:00:02.2]} 50. Rd6 {[%clk 0:00:04.3]} 50... Kc7 {[%clk 0:00:02.3]}
51. c5 {[%clk 0:00:04.9]} 51... g5 {[%clk 0:00:01.3]} 52. Rxf6 {[%clk 0:00:05]}
52... g4 {[%clk 0:00:01.6]} 53. Rg6 {[%clk 0:00:04.8]} 53... Bf3 {[%clk
0:00:01.6]} 54. Rg7+ {[%clk 0:00:05.1]} 54... Kc6 {[%clk 0:00:01]} 55. f5 {[%clk
0:00:05.8]} 1-0

[Event "Late-Titled-Tuesday-Blitz-June-18-2024"]
[Site "Chess.com"]
[Date "2024.06.18"]
[Round "8"]
[White "KNVB"]
[Black "JG1me"]
[Result "0-1"]
[WhiteElo "2774"]
[BlackElo "2574"]
[TimeControl "180+1"]
[EndTime "15:29:56 PDT"]
[Termination "JG1me won on time"]

1. d4 {[%clk 0:03:00.9]} 1... Nf6 {[%clk 0:02:59.9]} 2. Bf4 {[%clk 0:03:00.8]}
2... d6 {[%clk 0:02:52.6]} 3. e3 {[%clk 0:03:01]} 3... g6 {[%clk 0:02:53.1]} 4.
h3 {[%clk 0:03:01.2]} 4... Bg7 {[%clk 0:02:53.7]} 5. Nf3 {[%clk 0:03:01.5]} 5...
O-O {[%clk 0:02:54.3]} 6. c3 {[%clk 0:03:02.2]} 6... Nfd7 {[%clk 0:02:52.4]} 7.
Bh2 {[%clk 0:03:02.5]} 7... e5 {[%clk 0:02:51.4]} 8. a4 {[%clk 0:03:03.4]} 8...
Nc6 {[%clk 0:02:47.2]} 9. Be2 {[%clk 0:03:02.3]} 9... f5 {[%clk 0:02:44]} 10. a5
{[%clk 0:03:00.1]} 10... a6 {[%clk 0:02:41.1]} 11. b4 {[%clk 0:02:57.2]} 11...
Qe7 {[%clk 0:02:36.8]} 12. Na3 {[%clk 0:02:56]} 12... Kh8 {[%clk 0:02:36.6]} 13.
Qb3 {[%clk 0:02:50.9]} 13... f4 {[%clk 0:02:28.6]} 14. d5 {[%clk 0:02:48.6]}
14... Nd8 {[%clk 0:02:27]} 15. e4 {[%clk 0:02:48.5]} 15... Nf6 {[%clk
0:02:22.2]} 16. Nd2 {[%clk 0:02:49]} 16... c6 {[%clk 0:02:11.5]} 17. c4 {[%clk
0:02:28.7]} 17... Bd7 {[%clk 0:02:07.8]} 18. f3 {[%clk 0:02:25.7]} 18... Nh5
{[%clk 0:02:06.8]} 19. O-O-O {[%clk 0:02:21.4]} 19... Rc8 {[%clk 0:01:59.1]} 20.
Kb2 {[%clk 0:02:16.1]} 20... Qg5 {[%clk 0:01:57.7]} 21. Rhg1 {[%clk 0:02:11.5]}
21... Ng3 {[%clk 0:01:57]} 22. Bd3 {[%clk 0:02:11.7]} 22... Rf7 {[%clk
0:01:28.1]} 23. Rc1 {[%clk 0:02:11]} 23... Be8 {[%clk 0:01:28.1]} 24. Nab1
{[%clk 0:02:03.6]} 24... Rfc7 {[%clk 0:01:28.1]} 25. Nc3 {[%clk 0:02:03.5]}
25... Bf7 {[%clk 0:01:27.3]} 26. Na4 {[%clk 0:02:01.8]} 26... cxd5 {[%clk
0:01:22.1]} 27. Nb6 {[%clk 0:01:36.2]} 27... dxc4 {[%clk 0:01:16.9]} 28. Bxc4
{[%clk 0:01:32.6]} 28... Ne2 {[%clk 0:01:02.2]} 29. Nxc8 {[%clk 0:01:23.7]}
29... Nxc1 {[%clk 0:00:59.3]} 30. Rxc1 {[%clk 0:01:07.3]} 30... Qxg2 {[%clk
0:00:45.6]} 31. Rc2 {[%clk 0:01:07.6]} 31... Rxc8 {[%clk 0:00:35.3]} 32. Bxf7
{[%clk 0:00:52.2]} 32... Rxc2+ {[%clk 0:00:34.7]} 33. Qxc2 {[%clk 0:00:09.2]}
33... Qxh2 {[%clk 0:00:34.9]} 34. Bd5 {[%clk 0:00:09.9]} 34... Bf6 {[%clk
0:00:32.3]} 35. Nc4 {[%clk 0:00:02.3]} 35... Qxh3 {[%clk 0:00:19.9]} 36. b5
{[%clk 0:00:02.1]} 36... Qd7 {[%clk 0:00:16.1]} 37. bxa6 {[%clk 0:00:01.7]}
37... bxa6 {[%clk 0:00:17]} 38. Qb3 {[%clk 0:00:01.9]} 38... h5 {[%clk 0:00:16]}
39. Qb6 {[%clk 0:00:01.7]} 39... h4 {[%clk 0:00:15.5]} 40. Nxd6 {[%clk 0:00:02]}
40... h3 {[%clk 0:00:14.3]} 41. Nf7+ {[%clk 0:00:02.3]} 41... Nxf7 {[%clk
0:00:13.5]} 42. Qxf6+ {[%clk 0:00:02.6]} 42... Kg8 {[%clk 0:00:12.1]} 43. Qxg6+
{[%clk 0:00:03]} 43... Kf8 {[%clk 0:00:12.9]} 44. Bxf7 {[%clk 0:00:02.3]} 44...
Qxf7 {[%clk 0:00:13.1]} 45. Qh6+ {[%clk 0:00:02.7]} 45... Qg7 {[%clk 0:00:13]}
46. Qxh3 {[%clk 0:00:03]} 46... Qb7+ {[%clk 0:00:13.6]} 47. Kc1 {[%clk
0:00:01.8]} 47... Qc7+ {[%clk 0:00:13.7]} 48. Kd1 {[%clk 0:00:02.1]} 48... Qxa5
{[%clk 0:00:14.2]} 49. Qc8+ {[%clk 0:00:01.4]} 49... Ke7 {[%clk 0:00:14.2]} 50.
Qb7+ {[%clk 0:00:01.5]} 50... Kd6 {[%clk 0:00:14.6]} 51. Qb8+ {[%clk 0:00:01.6]}
51... Qc7 {[%clk 0:00:14.1]} 52. Qf8+ {[%clk 0:00:01.6]} 52... Kc6 {[%clk
0:00:13.3]} 53. Qf6+ {[%clk 0:00:01.3]} 53... Qd6+ {[%clk 0:00:13.7]} 54. Qxd6+
{[%clk 0:00:01.3]} 54... Kxd6 {[%clk 0:00:14.6]} 55. Kc2 {[%clk 0:00:01.7]}
55... Kc5 {[%clk 0:00:15.5]} 56. Kc3 {[%clk 0:00:02.1]} 56... a5 {[%clk
0:00:15.8]} 57. Kb3 {[%clk 0:00:02.2]} 57... Kd4 {[%clk 0:00:16.3]} 58. Ka4
{[%clk 0:00:03.1]} 58... Ke3 {[%clk 0:00:17]} 59. Kxa5 {[%clk 0:00:04]} 59...
Kxf3 {[%clk 0:00:17.8]} 60. Kb5 {[%clk 0:00:04.9]} 60... Kxe4 {[%clk 0:00:18.7]}
61. Kc4 {[%clk 0:00:05.7]} 61... f3 {[%clk 0:00:19.6]} 62. Kc5 {[%clk
0:00:05.7]} 62... f2 {[%clk 0:00:20.2]} 63. Kd6 {[%clk 0:00:06.6]} 63... f1=Q
{[%clk 0:00:20.8]} 64. Kc6 {[%clk 0:00:07.4]} 64... Qd3 {[%clk 0:00:21.4]} 0-1

[Event "Late-Titled-Tuesday-Blitz-June-18-2024"]
[Site "Chess.com"]
[Date "2024.06.18"]
[Round "8"]
[White "Andrii_Prydun"]
[Black "Cxrjs"]
[Result "0-1"]
[WhiteElo "2366"]
[BlackElo "2518"]
[TimeControl "180+1"]
[EndTime "15:29:58 PDT"]
[Termination "Cxrjs won on time"]

1. e4 {[%clk 0:02:52]} 1... e5 {[%clk 0:02:59.6]} 2. d4 {[%clk 0:02:51.2]} 2...
exd4 {[%clk 0:02:59.4]} 3. Qxd4 {[%clk 0:02:52.1]} 3... Nc6 {[%clk 0:02:59.1]}
4. Qc4 {[%clk 0:02:51.9]} 4... Nf6 {[%clk 0:02:58]} 5. Nc3 {[%clk 0:02:51.3]}
5... Bb4 {[%clk 0:02:52.1]} 6. Bd2 {[%clk 0:02:51.3]} 6... O-O {[%clk
0:02:47.9]} 7. O-O-O {[%clk 0:02:50.9]} 7... Re8 {[%clk 0:02:42.6]} 8. f3 {[%clk
0:02:49.4]} 8... a5 {[%clk 0:02:39.6]} 9. Be1 {[%clk 0:02:45.9]} 9... b6 {[%clk
0:02:23.5]} 10. Nge2 {[%clk 0:02:39.9]} 10... Ba6 {[%clk 0:02:20.9]} 11. Qb3
{[%clk 0:02:35.1]} 11... Bc5 {[%clk 0:01:50.7]} 12. Na4 {[%clk 0:02:26.3]} 12...
Bf8 {[%clk 0:01:48.2]} 13. Nec3 {[%clk 0:02:25.4]} 13... Bxf1 {[%clk 0:01:17.1]}
14. Rxf1 {[%clk 0:02:26.3]} 14... Qe7 {[%clk 0:01:15.3]} 15. g4 {[%clk
0:02:16.8]} 15... h5 {[%clk 0:01:13.5]} 16. h3 {[%clk 0:02:16]} 16... Qb4 {[%clk
0:01:05.8]} 17. Bg3 {[%clk 0:02:11.9]} 17... d6 {[%clk 0:01:01.9]} 18. g5 {[%clk
0:01:52.6]} 18... Nd7 {[%clk 0:00:58.2]} 19. Qd5 {[%clk 0:01:41.2]} 19... Nce5
{[%clk 0:00:50.9]} 20. a3 {[%clk 0:01:36]} 20... c6 {[%clk 0:00:45.7]} 21. Qd2
{[%clk 0:01:28.1]} 21... Qc4 {[%clk 0:00:43.1]} 22. f4 {[%clk 0:01:27.5]} 22...
Ng6 {[%clk 0:00:38]} 23. b3 {[%clk 0:01:07.1]} 23... Qa6 {[%clk 0:00:36.9]} 24.
Nb2 {[%clk 0:01:06.6]} 24... Nc5 {[%clk 0:00:32.6]} 25. Rde1 {[%clk 0:00:59]}
25... Nxe4 {[%clk 0:00:30.3]} 26. Nxe4 {[%clk 0:00:54.2]} 26... Rxe4 {[%clk
0:00:30.2]} 27. f5 {[%clk 0:00:47.6]} 27... Ne5 {[%clk 0:00:23.2]} 28. Qg2
{[%clk 0:00:34.1]} 28... Rxe1+ {[%clk 0:00:13.4]} 29. Rxe1 {[%clk 0:00:35]}
29... Qb5 {[%clk 0:00:12.9]} 30. g6 {[%clk 0:00:28.4]} 30... Qc5 {[%clk
0:00:08.2]} 31. f6 {[%clk 0:00:24.3]} 31... Nxg6 {[%clk 0:00:07.4]} 32. Bf2
{[%clk 0:00:21.6]} 32... Qxa3 {[%clk 0:00:06.8]} 33. Kb1 {[%clk 0:00:13.6]}
33... a4 {[%clk 0:00:06.1]} 34. Nc4 {[%clk 0:00:11.6]} 34... Qb4 {[%clk
0:00:05.3]} 35. Qxc6 {[%clk 0:00:10.3]} 35... Rd8 {[%clk 0:00:02.7]} 36. Qxb6
{[%clk 0:00:09.2]} 36... Qxb6 {[%clk 0:00:02.6]} 37. Bxb6 {[%clk 0:00:09.2]}
37... axb3 {[%clk 0:00:03.5]} 38. cxb3 {[%clk 0:00:07.5]} 38... Rb8 {[%clk
0:00:03.5]} 39. fxg7 {[%clk 0:00:03.3]} 39... Bxg7 {[%clk 0:00:03.6]} 40. Rd1
{[%clk 0:00:02.6]} 40... Nf4 {[%clk 0:00:02.8]} 41. Rxd6 {[%clk 0:00:02.4]}
41... Nxh3 {[%clk 0:00:03.3]} 42. Kc2 {[%clk 0:00:01.9]} 42... Nf4 {[%clk
0:00:03.7]} 43. Bc7 {[%clk 0:00:01.9]} 43... Rc8 {[%clk 0:00:03.7]} 44. Rd8+
{[%clk 0:00:01.6]} 44... Rxd8 {[%clk 0:00:03.8]} 45. Bxd8 {[%clk 0:00:02.5]}
45... Ne6 {[%clk 0:00:04.1]} 46. Be7 {[%clk 0:00:02.4]} 46... Nd4+ {[%clk
0:00:04.2]} 47. Kd3 {[%clk 0:00:01.8]} 47... Nxb3 {[%clk 0:00:04.7]} 48. Ke4
{[%clk 0:00:02.2]} 48... Nd4 {[%clk 0:00:05]} 49. Kf4 {[%clk 0:00:02.1]} 49...
Kh7 {[%clk 0:00:04.7]} 50. Ne3 {[%clk 0:00:01.7]} 50... Bh6+ {[%clk 0:00:04.7]}
51. Ke4 {[%clk 0:00:01.7]} 51... Bxe3 {[%clk 0:00:05.4]} 0-1